Cogmind - Beta 13 *** ADVENTURER MODE // 2024.03.30 @ 13:24:48 Player: bonety Result: Destroyed by G-47 Trooper with Particle Gun Performance ------------- Evolutions (3) 1500 Regions Visited (4) 800 Robots Destroyed (39) 195 Value Destroyed (1376) 1376 Prototype IDs (1) 20 Alien Tech Used (0) 0 Bonus (0) 0 TOTAL SCORE: 3891 Bonus ------- None Cogmind --------- Core Integrity 0/700 Matter 147/300 Energy 100/100 System Corruption 2% Temperature Cool (9) Movement Core (50) Location -7/Factory Parts ------- > --- POWER (3) -------- (None) > --- PROPULSION (3) --- (None) > --- UTILITY (3) ------ (None) > --- WEAPON (4) ------- (None) > --- INVENTORY (5) ---- Heavy Laser Peak State ------------ > --- POWER ------------ Improved Ion Engine Enhanced Nuclear Core > --- PROPULSION ------- Aluminum Leg Aluminum Leg > --- UTILITY ---------- Hardened Light Armor Plating Improved Field Recycling Unit > --- WEAPON ----------- Beam Rifle Heavy Laser Heavy Laser Heavy Laser > --- INVENTORY -------- Terrain Scanner Heavy Missile Launcher [Rating: 29] Favorites ----------- Power Ion Engine Engine Ion Engine Power Core Enhanced Nuclear Core Propulsion Aluminum Leg Treads Light Treads Leg Aluminum Leg Wheel Wheel Flight Unit Flight Unit Utility Improved Field Recycling Unit Device Improved Field Recycling Unit Storage Small Battery Protection Hardened Light Armor Plating Weapon Gatling Laser Energy Gun Gatling Laser Ballistic Gun Light Assault Rifle Launcher Heavy Missile Launcher Build | -11 -10 -10 -8 -7 ------- Run | Yrd Mat Sub Mat Fac Slots Evolved 6 | . . . 4 2 Power 2 | . . . 1 1 Propulsion 1 | . . . 1 . Utility 1 | . . . . 1 Weapon 2 | . . . 2 . Parts Attached 40 | 5 12 1 13 9 Power 6 | 1 2 . 2 1 Engine 5 | 1 2 . 2 . Core 1 | . . . . 1 Reactor . | . . . . . Propulsion 10 | 2 4 . 3 1 Treads 1 | . . . . 1 Leg 4 | . 2 . 2 . Wheel 2 | 2 . . . . Hover . | . . . . . Flight 3 | . 2 . 1 . Utility 11 | . 5 1 3 2 Device 7 | . 4 . 2 1 Storage 1 | . 1 . . . Processor . | . . . . . Hackware . | . . . . . Protection 3 | . . 1 1 1 Artifact . | . . . . . Weapon 13 | 2 1 . 5 5 Energy Gun 10 | 1 1 . 4 4 Energy Cannon . | . . . . . Ballistic Gun 1 | 1 . . . . Ballistic Cannon . | . . . . . Launcher 2 | . . . 1 1 Special Weapon . | . . . . . Impact Weapon . | . . . . . Slashing Weapon . | . . . . . Piercing Weapon . | . . . . . Special Melee Weapon . | . . . . . Unidentified Prototypes 1 | . . . . 1 Parts Lost 26 | . 4 5 4 13 Power 5 | . 1 1 1 2 Propulsion 7 | . 1 2 1 3 Utility 6 | . 1 1 1 3 Weapon 8 | . 1 1 1 5 Highest Loss Streak 12 | . 4 5 2 12 To Critical Strikes . | . . . . . Average Slot Usage (%) 77 | . 91 80 73 62 Engine 9 | . 13 12 7 6 Leg 13 | . 14 26 7 10 Flight 4 | . 7 . 7 . Device 9 | . 11 . 13 6 Storage 4 | . 12 . . . Protection 3 | . . 11 3 3 Energy Gun 19 | . 13 14 25 24 Ballistic Gun 6 | . 14 13 . . Launcher 3 | . . . 8 2 Naked Turns 23 | . . . . 23 Heaviest Build 47 | 5 9 25 41 47 Greatest Support 20 | 20 20 20 20 20 Greatest Overweight (x) 9 | . 2 1 9 9 Average Overweight (x) 1 | . . . 3 1 Largest Inventory Capacity 5 | 5 5 5 5 5 Average Capacity 5 | 5 5 5 5 5 Most Carried 5 | 3 5 5 2 3 Average Carried 1 | . 1 2 . 1 Final Capacity 5 | 5 5 5 5 5 Final Carried 3 | 1 2 3 1 1 Class Distribution -------------------- 49% | Mutant 17% | Scavenger-Tank 14% | Skirmisher 10% | Scavenger-Gunner 6% | Tank Dominant Class ---------------- Mutant | -10/Materials Mutant | -10/Subcaves Skirmisher | -8/Materials Scavenger-Tank | -7/Factory Resources | -11 -10 -10 -8 -7 ----------- Run | Yrd Mat Sub Mat Fac Matter Collected 745 | 251 130 22 240 102 Remotely . | . . . . . Salvage Created 1267 | 32 400 46 399 390 Parts 71 | 2 25 . 25 19 Haulers Intercepted . | . . . . . Recyclers Shooed . | . . . . . Parts Field Recycled . | . . . . . Retrieved Matter . | . . . . . Parts Self-Destructed . | . . . . . Prevented . | . . . . . Kills | -11 -10 -10 -8 -7 ------- Run | Yrd Mat Sub Mat Fac Combat Hostiles Destroyed 32 | 1 11 1 12 7 Melee 1 | . . 1 . . Guns 20 | 1 11 . 3 5 AOE 11 | . . . 9 2 Classes Destroyed 11 | 1 1 1 6 2 Worker 3 | . . . 1 2 Builder 2 | . . . 2 . Watcher 2 | . . . 1 1 Swarmer 4 | . 3 . . 1 Grunt 18 | 1 8 . 7 2 Brawler 2 | . . . 2 . Duelist 1 | . . . . 1 Sentry 3 | . . . 2 1 Hunter 1 | . . . 1 . Programmer 1 | . . . . 1 Subdweller 1 | . . 1 . . Thug 1 | . . . . 1 Best Kill Streak 4 | 1 3 1 4 4 Combat Bots Only 4 | 1 3 1 4 2 Max Kills in Single Turn 3 | 1 2 1 3 3 Gunslinging 1 | . 1 . . . Exploded 3 | . . . 3 2 Melee 1 | . . 1 . . Uniques/NPCs Destroyed . | . . . . . Combat | -11 -10 -10 -8 -7 -------- Run | Yrd Mat Sub Mat Fac Hostile Shots Fired 370 | 1 61 49 32 227 Missed 112 | . 22 18 9 63 Damage Taken 3068 | 8 339 637 548 1536 Core 1098 | . 99 127 167 705 Absorbed by Shields . | . . . . . Ignored by Resistances 839 | 3 106 171 131 428 Regen/Repaired (Parts) 9 | . 9 . . . Core Remaining (%) 59 | 100 . 9 69 . Volleys Fired 77 | 1 37 7 11 21 Largest 4 | 2 2 2 4 4 Hottest 264 | 60 60 60 264 263 Shots Fired 177 | 2 71 14 36 54 Gun 161 | 2 71 14 25 49 Cannon . | . . . . . Launcher 16 | . . . 11 5 Special . | . . . . . Kinetic 45 | 1 37 7 . . Thermal 115 | 1 34 7 25 48 Explosive 16 | . . . 11 5 Electromagnetic 1 | . . . . 1 Robot Hit Streak 27 | 2 27 10 17 17 Robot Miss Streak 4 | . 1 2 4 3 Penetration Max . | . . . . . Secondary Targets 3 | . 3 . . . Max Gunslinging Chain 1 | . 1 . . . Shots Hit Robots 136 | 2 62 12 23 37 Core Hits 86 | 2 27 5 28 24 Critical Kills . | . . . . . Critical Parts Destroyed . | . . . . . Critical Strikes 3 | . . . . 3 Burn 3 | . . . . 3 Melee Attacks . | . . . . . Impact . | . . . . . Slashing . | . . . . . Piercing . | . . . . . Sneak Attacks . | . . . . . Combat Hostiles . | . . . . . Follow-up Attacks . | . . . . . Damage Inflicted 3613 | 18 604 138 1829 1024 Guns 1893 | 18 604 132 464 675 Cannons . | . . . . . Explosions 1714 | . . . 1365 349 Melee . | . . . . . Ramming 6 | . . 6 . . Kinetic 320 | 8 256 56 . . Thermal 1897 | 10 348 76 798 665 Explosive 1380 | . . . 1031 349 Electromagnetic 10 | . . . . 10 Impact . | . . . . . Slashing . | . . . . . Piercing . | . . . . . Highest Corruption 2 | . . . . 2 Average Corruption 1 | . . . . 1 Corruption Purged . | . . . . . Corruption Blocked . | . . . . . Effects 1 | . . . . 1 Data Loss (minor) 1 | . . . . 1 Overload Shots . | . . . . . Overflow Damage 101 | . . . 72 29 Projectiles . | . . . . . Explosions 101 | . . . 72 29 Melee . | . . . . . Knockbacks . | . . . . . Impact . | . . . . . Kinetic . | . . . . . Secondary . | . . . . . Self-Inflicted Damage 278 | . . . 197 81 Shots 6 | . . . 4 2 Rammed . | . . . . . Targets Rammed 2 | . . 2 . . Kicked 2 | . . 2 . . Crushed . | . . . . . Highest Temperature 896 | 20 146 . 574 896 Average Temperature 217 | 15 41 . 225 318 Received Heat Transfer 1266 | 6 216 207 198 639 Effects 44 | . . . 6 38 Shutdowns 10 | . . . 2 8 Energy Bleed 7 | . . . 1 6 Interference 2 | . . . . 2 Matter Decay 4 | . . . . 4 Short Circuit 5 | . . . 1 4 Damage (minor) 7 | . . . 1 6 Damage (major) 7 | . . . . 7 Damage (core) 2 | . . . 1 1 Siege Activations . | . . . . . Robots Corrupted . | . . . . . Combat Hostiles . | . . . . . Parts Fried . | . . . . . Impact Corruptions . | . . . . . Robots Melted . | . . . . . Combat Hostiles . | . . . . . Parts Melted 7 | . 1 1 2 3 Heat Transferred 3855 | 25 775 175 1262 1618 Parts Sabotaged . | . . . . . Parts Stolen . | . . . . . Parts Stripped . | . . . . . Power Chain Reactions . | . . . . . Alert | -11 -10 -10 -8 -7 ------- Run | Yrd Mat Sub Mat Fac Peak Influence 417 | 20 290 . 417 296 Initial 162 | . 11 . . 162 Average 122 | 4 134 . 78 175 Maximum Alert Level 2 | . 1 . 2 1 Low Security (%) 77 | 100 84 . 84 55 Level 1 20 | . 15 . 7 44 Level 2 2 | . . . 7 . Level 3 . | . . . . . Level 4 . | . . . . . Level 5 . | . . . . . High Security . | . . . . . Max Security . | . . . . . Squads Dispatched 11 | . 3 . 4 4 Investigation 3 | . 3 . . . Extermination 1 | . . . . 1 Reinforcement 4 | . . . 2 2 Assault . | . . . . . Garrison 3 | . . . 2 1 Intercept . | . . . . . Searches Triggered . | . . . . . Construction Impeded 3 | . . . 2 1 Haulers Reinforced 1 | . . . . 1 Active Scanning Responses . | . . . . . Cargo Convoy Interrupts . | . . . . . Stealth | -11 -10 -10 -8 -7 --------- Run | Yrd Mat Sub Mat Fac Distress Signals 1 | . . . . 1 Communications Jammed . | . . . . . Distress Signals . | . . . . . Times Spotted 60 | 1 14 10 17 18 Peak Tracking Total 9 | 1 4 6 5 9 Tactical Retreats 1 | . . . . 1 Traps | -11 -10 -10 -8 -7 ------- Run | Yrd Mat Sub Mat Fac Traps Triggered 1 | . 1 . . . Indirectly . | . . . . . Trap Hack Attempts . | . . . . . Triggered . | . . . . . Disarmed . | . . . . . Reprogrammed . | . . . . . Reused . | . . . . . Traps Extracted . | . . . . . Installed . | . . . . . Triggered . | . . . . . Machines | -11 -10 -10 -8 -7 ---------- Run | Yrd Mat Sub Mat Fac Machines Disabled 3 | . . . 3 . Max in Single Turn 2 | . . . 2 . Machines Repaired . | . . . . . Machines Dismantled . | . . . . . Machines Sabotaged . | . . . . . Overloaded Fab Kills . | . . . . . Hacking | -11 -10 -10 -8 -7 --------- Run | Yrd Mat Sub Mat Fac Machines Accessed 4 | . 3 . 1 . Terminals 3 | . 2 . 1 . Fabricators . | . . . . . Repair Stations 1 | . 1 . . . Recycling Units . | . . . . . Scanalyzers . | . . . . . Garrison Access . | . . . . . Total Hacks 20 | . 16 . 4 . Successful 14 | . 10 . 4 . Failed 6 | . 6 . . . Catastrophic . | . . . . . Database Lockouts . | . . . . . Manual . | . . . . . Terminals 9 | . 5 . 4 . Fabricators . | . . . . . Repair Stations 11 | . 11 . . . Recycling Units . | . . . . . Scanalyzers . | . . . . . Garrison Access . | . . . . . Terminal Hacks 7 | . 3 . 4 . Record 6 | . 3 . 3 . Alert Level 1 | . . . 1 . Fabricator Hacks . | . . . . . Repair Station Hacks 7 | . 7 . . . Scan Component 4 | . 4 . . . Repair 3 | . 3 . . . Recycling Unit Hacks . | . . . . . Scanalyzer . | . . . . . Garrison Access Hacks . | . . . . . Unauthorized Hacks . | . . . . . Terminals . | . . . . . Fabricators . | . . . . . Repair Stations . | . . . . . Recycling Units . | . . . . . Scanalyzers . | . . . . . Garrison Access . | . . . . . Data Cores Recovered . | . . . . . Used . | . . . . . Hacking Detections 3 | . 2 . 1 . Full Trace Events 3 | . 2 . 1 . Feedback Events . | . . . . . Feedback Blocked . | . . . . . Robot Schematics Acquired . | . . . . . Robots Built . | . . . . . Authchips . | . . . . . Time . | . . . . . Total Robot Build Rating . | . . . . . Part Schematics Acquired . | . . . . . Parts Built . | . . . . . Authchips . | . . . . . Time . | . . . . . Total Part Build Rating . | . . . . . Parts Repaired 3 | . 3 . . . Time 78 | . 78 . . . Parts Recycled . | . . . . . Recycled Matter . | . . . . . Retrieved Matter . | . . . . . Retrieved Components . | . . . . . Parts Scanalyzed . | . . . . . Part Schematics Acquired . | . . . . . Parts Damaged . | . . . . . Bothacking | -11 -10 -10 -8 -7 ------------ Run | Yrd Mat Sub Mat Fac Used RIF Installer . | . . . . . Robots Hacked . | . . . . . Non-combat . | . . . . . Combat . | . . . . . Robot Hacks Applied . | . . . . . Relay Couplers Released . | . . . . . Fabnet Peak Effective % . | . . . . . Robots Rewired . | . . . . . Allies Hacked . | . . . . . Hacks Repelled . | . . . . . Allies | -11 -10 -10 -8 -7 -------- Run | Yrd Mat Sub Mat Fac Total Allies . | . . . . . Largest Group . | . . . . . Highest-Rated Group . | . . . . . Highest-Rated Ally . | . . . . . Total Orders . | . . . . . Ally Attacks . | . . . . . Total Damage . | . . . . . Kills . | . . . . . Allies Corrupted . | . . . . . Allies Melted . | . . . . . Intel | -11 -10 -10 -8 -7 ------- Run | Yrd Mat Sub Mat Fac Robot Analysis Total . | . . . . . Derelict Logs Recovered . | . . . . . Drone Launches . | . . . . . Drone Recoveries . | . . . . . Exploration | -11 -10 -10 -8 -7 ------------- Run | Yrd Mat Sub Mat Fac Turns Passed 2379 | 90 747 305 667 570 Spaces Moved 1008 | 107 355 158 157 231 Core 79 | 33 . 8 . 38 Treads 45 | . . . . 45 Legs 485 | . 96 150 91 148 Wheels 124 | 74 50 . . . Hover . | . . . . . Flight 275 | . 209 . 66 . Fastest Speed 37 | 50 37 50 120 50 Average Speed 170 | 70 87 170 371 207 Slowest Speed 760 | 80 200 190 760 500 Overloaded Moves . | . . . . . Propulsion Burnouts . | . . . . . Robots Hopped . | . . . . . Cave-ins Triggered . | . . . . . Exploration Rate (%) 16 | 8 42 9 19 6 Regions Visited 4 Branch Regions 1 Pre-discovered Areas . | . . . . . Known Exits Taken . | . . . . . Unknown Exits Taken 4 | 1 1 1 1 . Scrap Searched . | . . . . . Spaces Dug . | . . . . . Terrain Destroyed 187 | . . . 137 50 Melee . | . . . . . Projectile . | . . . . . AOE 187 | . . . 137 50 Terrain Rammed . | . . . . . Walls Destroyed . | . . . . . Machines Disabled . | . . . . . Actions | -11 -10 -10 -8 -7 --------- Run | Yrd Mat Sub Mat Fac Total 1519 | 119 727 181 210 282 Wait 351 | 1 309 11 18 12 Move 1004 | 106 354 157 156 231 Hop . | . . . . . Pick Up 36 | 6 12 1 10 7 Fast Attach 1 | . 1 . . . Attach 33 | 5 7 1 13 7 Detach 2 | . . 1 1 . Swap 6 | . 4 . . 2 Drop 7 | . 3 1 1 2 Fire 77 | 1 37 7 11 21 Melee . | . . . . . Ram . | . . . . . Kick 2 | . . 2 . . Crush . | . . . . . Escape Stasis . | . . . . . Rewire . | . . . . . Trap . | . . . . . Miscellaneous . | . . . . . Route ------- -11/Scrapyard -10/Materials (discovered 2 exits: [*Mat] / [*Sub]) -10/Subcaves -8/Materials -7/Factory History --------- Turn | Location | Event 2 | -11/Scrapyard | Met Revision 17 64 | -11/Scrapyard | Discovered new exit (range 8) 91 | -11/Scrapyard | Entered Materials 279 | -10/Materials | Lost 4 parts (1p1n1u1w) 305 | -10/Materials | Build established: Mutant 327 | -10/Materials | Repaired Terrain Scanner 327 | -10/Materials | Repaired Ion Engine 353 | -10/Materials | Repaired Lgt. Ion Engine 482 | -10/Materials | Discovered new exit (range 12) 813 | -10/Materials | Discovered new exit (range 6) 838 | -10/Materials | Entered Subcaves 841 | -10/Subcaves | Ambushed by Subdwellers from Twisted Machinery 888 | -10/Subcaves | Discovered new exit (range 8) 1068 | -10/Subcaves | Ambushed by swarm of Subdwellers 1071 | -10/Subcaves | Ambushed by Subdwellers from Twisted Machinery 1105 | -10/Subcaves | Core integrity fell below 50% 1131 | -10/Subcaves | Lost 4 allies 1132 | -10/Subcaves | Core integrity fell below 20% 1143 | -10/Subcaves | Entered Materials 1143 | -8/Materials | Evolved 4 slots: Power x1, Propulsion x1, Weapon x2 1169 | -8/Materials | Lost 5 parts (1p2n1u1w) 1442 | -8/Materials | Build established: Skirmisher 1689 | -8/Materials | Garrison activated, responded to threat 1734 | -8/Materials | Discovered new exit (range 16) 1810 | -8/Materials | Entered Factory 1810 | -7/Factory | Evolved 2 slots: Power x1, Utility x1 2187 | -7/Factory | P-60 Hacker assimilated allied A8-H4T(g) 2302 | -7/Factory | Garrison activated, responded to threat 2350 | -7/Factory | Core integrity fell below 50% 2359 | -7/Factory | Core integrity fell below 20% 2380 | -7/Factory | Destroyed by G-47 Trooper with Particle Gun Last Messages --------------- A-02 Transporter calls for reinforcements. ALERT: Hostile activity reported, dispatching reinforcements to area. Overheating: Matter decay (-43). Hvy. Missile Launcher destroyed. ALERT: Construction progress impeded, dispatching reinforcements to local area. System corrupted: Component data lost. Acquired Arc Projector. U-05 Engineer lays Concrete. Overheating: Energy bleed (-17). U-05 Engineer builds a Wall. Overheating: System interference. Arc Projector temporarily disabled. Arc Projector destroyed. U-05 Engineer builds a Wall. G-47 Trooper IFF system glitched. R-06 Scavenger destroyed. Terminal disabled. Terrain Scanner destroyed. Map ----- +----------------------------------------------------+ | ####### =*= # #??????????????????? | | % #########??????????????????? | | """" #??????????????????????????? | | [ = """" ???????????????????????????? | | %% """" ???????????????????????????? | | ^ = ! """" ???????????????????????????? | | """" ???????????????????????????? | | ! """" #??????????????????????????? | | # # """" #??????????????????????????? | | # # #??????????????????????????? | | # #??????????????????????????? | | ] ! #??????????????????????????? | | #########???????"??????????????????? | | ######## ##?????????????????? ??????????????? | | ??????# #################+????????????????? | | ??????# ????????????????? | | ??????# = ???????????????? | | ??????# ???????????????? | | ??? # ???????????????? | | ? # ???????????????? | | ? ! ?# ###g########### ???????????????? | | ? ??####+##### g #????????????????????? | | ? ????????????# """" #????????????????????? | | ?""?????????????# """T"" #????????????????????? | | ????????????????# g g ""g#????????????????????? | | ????????????????# gp@g #????????????????????? | | ????????????????#############????????????????????? | | ????????????????#????????????????????????????????? | | ?????????????????????????????????????????????????? | | ????????????????????????"????????????????????????? | | ?????????????????????????????????????????????????? | | ????????????????????????????????? ???????????????? | | ?????????????????????????"???????????????????????? | | ?????????????????????????????????????????????????? | | ?????????????????????????????????????????????????? | | ??????????????????????????"??????????????????????? | | ?????????????????????????????????????????????????? | | ?????????????????????????????????????????????????? | | ?????????????????????????????????????????????????? | | ?????????????????????????????????????????????????? | | ?????????????????????????????????????????????????? | | ?????????????????????????????????????????????????? | | ?????????????????????????????????????????????????? | | ?????????????????????????????????????????????????? | | ?????????????????????????????????????????????????? | | ?????????????????????????????????????????????????? | | ?????????????????????????????????????????????????? | | ?????????????????????????????????????????????????? | | ?????????????????????????????????????????????????? | | ?????????????????????????????????????????????????? | +----------------------------------------------------+ Best States ------------- Heat Dissipation 35 Energy Generation 24 Energy Capacity 465 Matter Stores 300 Matter Capacity 300 Sight Range 16 Terrain Scan Range 14 Terrain Scan Density 10 Armor Coverage 800 Resistance: KI 20 Resistance: TH 20 Resistance: EX 20 Resistance: EM 20 Resistance: I 20 Resistance: S 20 Resistance: P 20 Evasion (%) 62 Recoil Reduction 1 Offensive Hacking 10 Item Schematics ----------------- None Robot Schematics ------------------ None Fabricated ------------ Nothing Alien Tech Used ----------------- None Achievements -------------- Close Call Let's See Who's Tougher Made in Tau Ceti IV Part-time Mechanic Troublemaker Challenges ------------ None Game ------ Seed MassZioniteDissipator Manual? 0 Play Time 00:26:41 Cumulative 2.3 hours Start 2024.03.30 @ 12:59:03 End 2024.03.30 @ 13:24:48 Sessions 1 Manual Loads 0 Difficulty Adventurer Special Mode None Game No. 5 Rogue 0 Adventurer 5 Explorer 0 Win Type - Total 0 Types 0/0/0/0/0/0/0/0/0 Lore% 4 Gallery% 4 Achievement% 5 Wizard Run 0 Options --------- Layout 1 ASCII 0 Keyboard 0 Movement Mouse Keybinds 0 Fullscreen 2 Font 32/SmallcapsGlow Map View 50x35 Zoom Use 0% Tactical HUD 0 Map Filters NONE Filters NONE Steam 1 RUN: 6fe777f1-4a7c-446a-ae4d-780b9a648804